[Event "Tirnavia Reti Memorial-GM 2022"]
[Site "Trnava"]
[Date "2022.08.15"]
[Round "6.4"]
[White "Sahidi, Samir"]
[Black "Czebe, Attila"]
[Result "1-0"]
[ECO "A00"]
[WhiteElo "2462"]
[BlackElo "2385"]
[Annotator "TA"]
[PlyCount "63"]
[EventDate "2022.08.10"]
[EventType "tourn"]
[EventCountry "SVK"]
[SourceTitle "playchess.com"]
[Source "ChessBase"]
[SourceQuality "1"]
[TimeControl "40/5400+30:1800+30"]

{[%evp 12,63,27,13,44,-32,-37,-34,-24,-22,-27,-34,-30,-53,10,4,70,63,86,-181,86,83,86,0,125,127,179,141,278,275,281,277,295,258,268,259,254,255,261,262,279,275,280,257,322,322,303,318,349,335,357,354,323,280]} 1. e4 c5 2. Nf3 e6 3. d4 cxd4 4. Nxd4 Nf6 5. Nc3 Nc6 6. a3 d6 {[%cal Bd7d6,Bd6d5][%mdl 32]} 7. Be3 $1 {[%mdl 4] is recently more successful than 7.Be2.} e5 {[#] B45: Sicilian Four Knights.} 8. Nf5 $146 {[#]} (8. Nb3 $14) ({Predecessor:} 8. Nb3 Ng4 9. Nd5 Nxe3 10. Nxe3 Be6 11. Nd5 Rc8 12. Be2 a6 13. Qd2 f5 14. exf5 Bxf5 15. O-O {0-1 (38) Kase,V (2105)-Barczyszyn,K (2045) Bled 1995}) 8... Nxe4 $1 $15 9. Nxg7+ Bxg7 {Black is slightly better.} 10. Nxe4 d5 11. Ng3 Be6 12. Qd2 h5 ({Black should play} 12... Qc7 $15) 13. Be2 $1 $11 e4 ({Black should try} 13... h4 $11 14. Nh5 Bf6) 14. c3 $1 $14 Na5 15. Nxh5 $2 {[%mdl 8192] [#]} (15. Rd1 $16 {keeps the pressure on.}) 15... Be5 $2 (15... Rxh5 $1 $19 {[%mdl 512]} 16. Bxh5 Nb3) 16. Rd1 $16 {aiming for Bg5.} Qc7 17. Bg5 (17. Nf4 $16 O-O-O 18. h4 (18. Nxe6 fxe6 19. h4 Kb8 $14)) 17... Nc4 (17... Rxh5 $1 $11 {keeps the balance.} 18. Bxh5 Nc4) 18. Bxc4 Qxc4 (18... Rxh5 $16 19. Bb5+ (19. Bxd5 Bxd5 20. g4 e3 $15) 19... Kf8) 19. Nf4 $18 {[%cal Rf4d5]} Bxf4 (19... Kd7 $16 {might work better.}) 20. Qxf4 ({Not} 20. Bxf4 Bg4 $14) 20... Kd7 {Prevents Qd6+.} 21. Rd4 ({Don't play} 21. Qf6 $6 Rag8 22. Rd4 Qc6 $18) 21... Qc7 22. Qxe4 Rae8 {[%cal Oe6h3] ...Bh3! is the strong threat.} 23. Qf4 Bf5+ 24. Kd2 Qxf4+ 25. Bxf4 Kc6 26. f3 Re6 27. Re1 Rg8 28. g4 {[%cal Bg2g4,Bg4g5][%mdl 32]} Rxe1 29. Kxe1 Be6 30. Kf2 f5 31. g5 Bf7 32. h4 {Weighted Error Value: White=0.34/Black=0.42} 1-0

[Event "Tirnavia Reti Memorial-GM 2022"]
[Site "Trnava"]
[Date "2022.08.15"]
[Round "6.4"]
[White "Straka, Jozef"]
[Black "Svana, Peter"]
[Result "0-1"]
[ECO "A00"]
[WhiteElo "2300"]
[BlackElo "2280"]
[Annotator "TA"]
[PlyCount "128"]
[EventDate "2022.08.10"]
[EventType "tourn"]
[EventCountry "SVK"]
[SourceTitle "playchess.com"]
[Source "ChessBase"]
[SourceQuality "1"]
[TimeControl "40/5400+30:1800+30"]

{[%evp 27,128,56,52,0,23,23,100,67,51,50,78,71,83,75,72,79,114,80,78,87,81,39,47,0,0,0,0,0,0,0,0,0,0,-39,-58,-102,0,-71,-82,-127,-128,-207,-210,-197,-191,-256,-205,-200,-210,-220,-213,-217,-207,-196,-204,-259,-254,-316,-180,-320,-297,-351,-339,-483,-470,-766,-708,-679,-570,-499,-26,-22,-22,-27,0,0,0,-251,-270,-299,-293,-281,-283,-236,-74,-477,-463,-423,-408,-375,-305,-29985,-29986,-29990,-29991,-29995,-29996,-29996,-29997,-29997,-29998,-29998,-29999]} 1. d4 Nf6 2. c4 g6 3. Nc3 Bg7 4. e4 O-O 5. Be2 d6 6. Bg5 h6 7. Be3 Na6 8. Qd2 c5 9. d5 Kh7 10. h3 e6 11. Nf3 exd5 12. exd5 Nc7 13. O-O a6 14. a4 Rb8 15. Rab1 {E74: King's Indian: Averbakh Variation: 6...c5.} ({White should play} 15. a5 $14) 15... Bf5 (15... b5 $5) 16. Bd3 Qd7 (16... Bxd3 $1 $11 {remains equal.} 17. Qxd3 b5) 17. Bxf5 {White is better.} Qxf5 {[#]} 18. Bf4 $146 ({Predecessor:} 18. b4 Nd7 19. bxc5 Nxc5 20. a5 Ne8 21. Nd4 Qc8 22. Rfc1 f5 23. f3 Nf6 24. Nce2 {0-1 (49) Abatino,M (2192)-Marholev,D (2375) Cutro 2007}) 18... Rfd8 {[#]} 19. b4 $1 Nfe8 20. Bg3 cxb4 21. Rxb4 a5 22. Rbb1 Na6 23. Nb5 Nc5 24. Qxa5 {[%cal Ob5d6]} Ra8 25. Qb6 (25. Qd2 $14) 25... Qd7 $11 {Strongly threatening ...Ra6.} 26. Nbd4 $1 Rxa4 27. Rfc1 Nf6 28. Nb3 {[%cal Of3e5] Black must now prevent Ne5!} Nfe4 29. Nxc5 Nxc5 30. Nd2 (30. Ne5 $5 Bxe5 31. Bxe5 $11) 30... f5 31. Nb3 Ne4 (31... Nd3 $17 {...f4 is the strong threat.} 32. Rf1 (32. Rd1 $2 Nb2 $17) 32... f4) 32. Qe3 (32. Nd4 $11 {keeps the balance.}) 32... Ra3 $17 33. Bh2 {[#]} Re8 $1 {[%cal Oe4c3] Black is more active.} 34. Nc5 Rxe3 $19 35. Nxd7 Re2 36. Re1 (36. Rxb7 {keeps fighting.} Kg8 37. Rcb1) 36... Nd2 37. Rxe2 Rxe2 38. Rc1 {[#]} Nxc4 {[%mdl 512] Threatens to win with ...b5.} 39. Kf1 Re4 {And now ...b5 would win.} 40. f3 Nd2+ 41. Kg1 Re7 42. Nb8 Bd4+ 43. Kh1 Bc5 44. Bf4 Nb3 45. Rc3 (45. Rb1 $142 g5 46. Bh2) 45... g5 46. Bxg5 (46. g4 $142 gxf4 47. Rxb3) 46... hxg5 47. Rxb3 {[%mdl 4096] Endgame KRB-KRN} Re1+ 48. Kh2 f4 $2 ({Better is} 48... Bg1+ $19 49. Kg3 Re7) 49. Rxb7+ $11 Kg6 50. g4 $1 Re2+ (50... fxg3+ $5 51. Kxg3 Rg1+ 52. Kh2 Rd1 $15) 51. Kh1 Rf2 52. Rb3 {[%mdl 8192]} (52. Nd7 $11 {and White has nothing to worry.}) 52... Be3 $19 53. Nc6 Rxf3 54. Ne7+ Kf6 55. Nf5 Ke5 $2 ({Inferior is} 55... Rxh3+ 56. Kg2 Rh7 57. Nxe3 $11) (55... Rf1+ $19 {has better winning chances.} 56. Kg2 Rf2+ 57. Kh1 Bc5) 56. Kg2 $2 {[%mdl 8192] White does not recover from this.} (56. h4 $17 {is tougher.}) 56... Rf2+ 57. Kh1 Bc5 58. h4 f3 {( -> ...Kf4)} 59. h5 $2 (59. hxg5 $19 Kf4 60. g6 Kxg4 61. Ne3+ (61. g7 {gets mated.} Rf1+ 62. Kh2 Bg1+ 63. Kh1 Be3+ 64. Kh2 Bf4+) 61... Kh3 62. Kg1 Rg2+ 63. Kf1 Rxg6 64. Kf2) 59... Kf4 {Black mates.} 60. h6 Kxg4 61. h7 Rf1+ 62. Kh2 Bg1+ 63. Kh1 Be3+ 64. Kh2 Bf4+ {Weighted Error Value: White=0.55/Black=0.31} 0-1

[Event "Tirnavia Reti Memorial-GM 2022"]
[Site "Trnava"]
[Date "2022.08.15"]
[Round "6.5"]
[White "Jablonicky, Martin"]
[Black "Velicka, Petr"]
[Result "1/2-1/2"]
[ECO "A00"]
[WhiteElo "2343"]
[BlackElo "2384"]
[Annotator "TA"]
[PlyCount "45"]
[EventDate "2022.08.10"]
[EventType "tourn"]
[EventCountry "SVK"]
[SourceTitle "playchess.com"]
[Source "ChessBase"]
[SourceQuality "1"]
[TimeControl "40/5400+30:1800+30"]

{[%evp 16,23,0,0,0,0,0,0,0,7]} 1. e4 c6 2. d4 d5 3. exd5 cxd5 4. c4 Nf6 5. Nc3 Nc6 6. Nf3 Bg4 7. cxd5 Nxd5 8. Qb3 Bxf3 9. gxf3 {The position is equal.} e6 {White must now prevent ...Bb4. B13: Caro-Kann: Exchange Variation and Panov-Botvinnik Attack.} 10. Qxb7 Nxd4 11. Bb5+ Nxb5 {Pair of Knights!} 12. Qc6+ {[#] An interesting draw.} {Predecessor:} Ke7 $146 13. Qc5+ Qd6 14. Nxd5+ exd5 15. Qxb5 Qe6+ 16. Be3 Kf6 17. O-O-O Bd6 18. Rxd5 Be5 19. Bg5+ Kf5 20. Rg1 Qc8+ 21. Kb1 f6 22. f4 Rd8 23. Rxe5+ {1-0 (23) Jobava,B (2588)-Donchenko,A (2636) Europe Echecs INT 2022} 1/2-1/2

[Event "Tirnavia Reti Memorial-GM 2022"]
[Site "Trnava"]
[Date "2022.08.15"]
[Round "6.5"]
[White "Lanc, Alois"]
[Black "Bures, Jaroslav"]
[Result "1/2-1/2"]
[ECO "A00"]
[WhiteElo "2263"]
[BlackElo "2416"]
[Annotator "TA"]
[PlyCount "45"]
[EventDate "2022.08.10"]
[EventType "tourn"]
[EventCountry "SVK"]
[SourceTitle "playchess.com"]
[Source "ChessBase"]
[SourceQuality "1"]
[TimeControl "40/5400+30:1800+30"]

{[%evp 15,16,10,31]} 1. e4 c6 2. d4 d5 3. Nc3 {[%cal Bb1c3,Bc3e4,Be4g3][%mdl 32]} dxe4 4. Nxe4 Bf5 5. Ng3 Bg6 6. Nf3 Nf6 7. Bc4 Nbd7 8. O-O e6 {[#]} {Predecessor:} 9. Re1 $146 {B18: Classical Caro-Kann: 4...Bf5 sidelines.} Be7 10. c3 O-O 11. Nh4 Qc7 12. Bb3 Bd6 13. Qf3 c5 14. Nxg6 hxg6 15. dxc5 Nxc5 16. Bc2 b5 17. Bg5 Ncd7 18. Rad1 b4 19. Qd3 Bxg3 20. hxg3 bxc3 21. bxc3 Rac8 22. Bd2 Qa5 23. Bb3 {½-½ (23) Kovchan,A (2579)-Hera,I (2598) Hungary 2019} 1/2-1/2

[Event "Tirnavia Reti Memorial-GM 2022"]
[Site "Trnava"]
[Date "2022.08.16"]
[Round "7.1"]
[White "Velicka, Petr"]
[Black "Malinovsky, Karel"]
[Result "1-0"]
[ECO "C95"]
[WhiteElo "2384"]
[BlackElo "2463"]
[Annotator "RC"]
[PlyCount "89"]
[EventDate "2022.08.10"]
[EventType "tourn"]
[EventCountry "SVK"]
[SourceTitle "playchess.com"]
[Source "ChessBase"]
[SourceQuality "1"]
[TimeControl "40/5400+30:1800+30"]

1. e4 {[%emt 0:02:18]} e5 {[%emt 0:00:06]} 2. Nf3 {[%emt 0:00:06]} Nc6 {[%emt 0:00:07]} 3. Bb5 {[%emt 0:00:04]} a6 {[%emt 0:00:13]} 4. Ba4 {[%emt 0:00:06]} Nf6 {[%emt 0:00:12]} 5. O-O {[%emt 0:00:07]} Be7 {[%emt 0:00:15]} 6. Re1 {[%emt 0:00:05]} b5 {[%emt 0:00:10]} 7. Bb3 {[%emt 0:00:05]} d6 {[%emt 0:00:10]} 8. c3 {[%emt 0:00:05]} O-O {[%emt 0:00:09]} 9. h3 {[%emt 0:00:03]} Nb8 {[%emt 0:00:44]} 10. d4 {[%emt 0:00:06]} Nbd7 {[%emt 0:00:06]} 11. Nbd2 {[%emt 0:00:07]} Bb7 {[%emt 0:00:20]} 12. Bc2 {[%emt 0:00:11]} Re8 {[%emt 0:00:28]} 13. Nf1 {[%emt 0:00:07]} Bf8 {[%emt 0:00:15]} 14. Ng3 {[%emt 0:00:10]} g6 {[%emt 0:00:47]} 15. a4 {[%emt 0:00:20]} Bg7 {[%emt 0:00:35]} 16. Bd3 {[%emt 0:00:44]} d5 {[%emt 0:02:15]} 17. exd5 {[%emt 0:02:30]} exd4 {[%emt 0:04:45]} 18. Rxe8+ {[%emt 0:08:38]} Qxe8 {[%emt 0:01:04]} 19. Nxd4 {[%emt 0:13:03]} Bxd5 {[%emt 0:07:31]} 20. axb5 {[%emt 0:02:38]} axb5 {[%emt 0:00:11]} 21. Be3 {[%emt 0:17:27]} c6 {[%emt 0:04:26]} 22. Bf1 {[%emt 0:03:57]} Ne5 {[%emt 0:16:04]} 23. b3 {[%emt 0:04:31]} h5 {[%emt 0:12:25]} 24. Rxa8 {[%emt 0:11:28]} Qxa8 {[%emt 0:00:53]} 25. Bf4 {[%emt 0:11:33]} Ned7 {[%emt 0:13:36]} 26. c4 {[%emt 0:00:55]} bxc4 {[%emt 0:00:17]} 27. bxc4 {[%emt 0:00:06]} c5 {[%emt 0:02:55]} 28. Ndf5 {[%emt 0:04:52]} Be6 {[%emt 0:03:12]} 29. Nxg7 {[%emt 0:00:55]} Kxg7 {[%emt 0:00:06]} 30. Qc1 {[%emt 0:03:25]} Ne4 {[%emt 0:07:28]} 31. Qb2+ {[%emt 0:03:29]} f6 {[%emt 0:01:16]} 32. Qe2 {[%emt 0:00:45]} f5 {[%emt 0:12:02]} 33. f3 {[%emt 0:00:21]} g5 {[%emt 0:00:38]} 34. fxe4 {[%emt 0:03:39]} gxf4 {[%emt 0:00:14]} 35. Nxh5+ {[%emt 0:00:36]} Kf7 {[%emt 0:00:15]} 36. exf5 {[%emt 0:02:25]} Bxf5 {[%emt 0:00:13]} 37. Nxf4 {[%emt 0:00:46]} Nf6 {[%emt 0:01:13]} 38. Qe5 {[%emt 0:02:18]} Qc8 {[%emt 0:00:07]} 39. Bd3 {[%emt 0:00:33]} Bxd3 {[%emt 0:00:14]} 40. Nxd3 {[%emt 0:00:20]} Nd7 {[%emt 0:00:20]} 41. Qf5+ {[%emt 0:30:20]} Ke7 {[%emt 0:30:27]} 42. Ne5 {[%emt 0:00:13]} Nb6 {[%emt 0:00:33]} 43. Ng6+ {[%emt 0:01:49]} Kd6 {[%emt 0:00:55]} 44. Qe5+ {[%emt 0:00:15]} Kd7 {[%emt 0:00:07]} 45. Qe7+ {[%emt 0:00:09]} 1-0

[Event "Tirnavia Reti Memorial-GM 2022"]
[Site "Trnava"]
[Date "2022.08.16"]
[Round "7.4"]
[White "Pechac, Jergus"]
[Black "Stevik, Patrik"]
[Result "1-0"]
[ECO "E94"]
[WhiteElo "2594"]
[BlackElo "2126"]
[Annotator "RC"]
[PlyCount "83"]
[EventDate "2022.08.10"]
[EventType "tourn"]
[EventCountry "SVK"]
[SourceTitle "playchess.com"]
[Source "ChessBase"]
[SourceQuality "1"]
[TimeControl "40/5400+30:1800+30"]

1. e4 {[%emt 0:00:25]} g6 {[%emt 0:01:01]} 2. d4 {[%emt 0:00:29]} Bg7 {[%emt 0:00:10]} 3. Nf3 {[%emt 0:00:39]} d6 {[%emt 0:00:25]} 4. Be3 {[%emt 0:00:19]} Nd7 {[%emt 0:03:19]} 5. c4 {[%emt 0:03:49]} e5 {[%emt 0:07:27]} 6. Nc3 {[%emt 0:00:13]} exd4 {[%emt 0:01:11]} 7. Nxd4 {[%emt 0:00:08]} Ngf6 {[%emt 0:00:21]} 8. Be2 {[%emt 0:01:51]} O-O {[%emt 0:01:08]} 9. O-O {[%emt 0:00:09]} Nc5 {[%emt 0:01:48]} 10. f3 {[%emt 0:00:29]} a5 {[%emt 0:02:43]} 11. Qd2 {[%emt 0:00:33]} Re8 {[%emt 0:03:06]} 12. Rad1 {[%emt 0:00:48]} Bd7 {[%emt 0:01:06]} 13. Ndb5 {[%emt 0:00:40]} b6 {[%emt 0:04:17]} 14. Kh1 {[%emt 0:04:11]} Bc6 {[%emt 0:15:50]} 15. b3 {[%emt 0:06:33]} Qd7 {[%emt 0:05:49]} 16. Rfe1 {[%emt 0:01:09]} h5 {[%emt 0:12:42]} 17. Bf1 {[%emt 0:01:51]} Kh7 {[%emt 0:01:36]} 18. Qc2 {[%emt 0:04:21]} Qc8 {[%emt 0:06:17]} 19. Bg5 {[%emt 0:02:33]} Bxb5 {[%emt 0:06:45]} 20. Nxb5 {[%emt 0:00:45]} Nfd7 {[%emt 0:01:05]} 21. g3 {[%emt 0:03:14]} Ne5 {[%emt 0:01:58]} 22. Bg2 {[%emt 0:00:35]} Nc6 {[%emt 0:03:29]} 23. Qd2 {[%emt 0:00:16]} Na7 {[%emt 0:06:48]} 24. Nc3 {[%emt 0:00:52]} Rb8 {[%emt 0:00:58]} 25. Nd5 {[%emt 0:01:12]} Nc6 {[%emt 0:01:20]} 26. f4 {[%emt 0:10:18]} b5 {[%emt 0:02:57]} 27. Bf6 {[%emt 0:05:08]} bxc4 {[%emt 0:05:35]} 28. Qc3 {[%emt 0:00:26]} Bf8 {[%emt 0:00:53]} 29. Qxc4 {[%emt 0:03:06]} Qa6 {[%emt 0:01:09]} 30. Qc3 {[%emt 0:00:24]} Rbc8 {[%emt 0:00:52]} 31. Bg5 {[%emt 0:01:47]} Nd7 {[%emt 0:00:22]} 32. Bh3 {[%emt 0:02:52]} Bg7 {[%emt 0:00:16]} 33. Nf6+ {[%emt 0:01:32]} Nxf6 {[%emt 0:01:20]} 34. Bxf6 {[%emt 0:00:03]} Bxf6 {[%emt 0:00:30]} 35. Qxf6 {[%emt 0:00:03]} Nd8 {[%emt 0:00:32]} 36. Bd7 {[%emt 0:04:00]} Rg8 {[%emt 0:00:54]} 37. g4 {[%emt 0:05:08]} hxg4 {[%emt 0:00:29]} 38. f5 {[%emt 0:07:22]} Ra8 {[%emt 0:00:31]} 39. Qh4+ {[%emt 0:00:08]} Kg7 {[%emt 0:00:16]} 40. f6+ {[%emt 0:00:06]} Kf8 {[%emt 0:00:08]} 41. Rxd6 {[%emt 0:30:28]} Ne6 {[%emt 0:30:22]} 42. Qh6+ {[%emt 0:01:16]} 1-0

[Event "Tirnavia Reti Memorial-GM 2022"]
[Site "Trnava"]
[Date "2022.08.16"]
[Round "7.5"]
[White "Pacher, Milan"]
[Black "Finek, Vaclav"]
[Result "1-0"]
[ECO "D31"]
[WhiteElo "2399"]
[BlackElo "2393"]
[Annotator "RC"]
[PlyCount "87"]
[EventDate "2022.08.10"]
[EventType "tourn"]
[EventCountry "SVK"]
[SourceTitle "playchess.com"]
[Source "ChessBase"]
[SourceQuality "1"]
[TimeControl "40/5400+30:1800+30"]

1. d4 {[%emt 0:00:06]} d5 {[%emt 0:00:20]} 2. c4 {[%emt 0:00:04]} e6 {[%emt 0:00:17]} 3. Nc3 {[%emt 0:00:06]} c6 {[%emt 0:00:32]} 4. e4 {[%emt 0:00:23]} dxe4 {[%emt 0:00:09]} 5. Nxe4 {[%emt 0:00:03]} Bb4+ {[%emt 0:01:05]} 6. Bd2 {[%emt 0:00:21]} Qxd4 {[%emt 0:00:35]} 7. Bxb4 {[%emt 0:00:03]} Qxe4+ {[%emt 0:00:07]} 8. Ne2 {[%emt 0:00:07]} Nd7 {[%emt 0:00:58]} 9. Qd6 {[%emt 0:02:25]} Qe5 {[%emt 0:08:43]} 10. Qd2 {[%emt 0:01:56]} Ngf6 {[%emt 0:05:51]} 11. O-O-O {[%emt 0:02:49]} Ne4 {[%emt 0:20:39]} 12. Qe3 {[%emt 0:00:27]} c5 {[%emt 0:00:51]} 13. f4 {[%emt 0:01:40]} Qc7 {[%emt 0:00:44]} 14. Be1 {[%emt 0:00:13]} Nef6 {[%emt 0:04:54]} 15. Nc3 {[%emt 0:02:17]} O-O {[%emt 0:03:20]} 16. g4 {[%emt 0:03:34]} b6 {[%emt 0:11:29]} 17. g5 {[%emt 0:01:07]} Nh5 {[%emt 0:01:40]} 18. Bg2 {[%emt 0:03:12]} Bb7 {[%emt 0:05:40]} 19. Nb5 {[%emt 0:00:36]} Qb8 {[%emt 0:00:11]} 20. Bxb7 {[%emt 0:03:15]} Qxb7 {[%emt 0:00:06]} 21. Bc3 {[%emt 0:00:06]} Rad8 {[%emt 0:06:09]} 22. Nd6 {[%emt 0:02:36]} Qc6 {[%emt 0:02:34]} 23. Ne4 {[%emt 0:06:02]} Nb8 {[%emt 0:04:39]} 24. Qf3 {[%emt 0:04:08]} g6 {[%emt 0:03:47]} 25. b3 {[%emt 0:08:39]} Rxd1+ {[%emt 0:06:31]} 26. Rxd1 {[%emt 0:00:04]} Rc8 {[%emt 0:02:56]} 27. Bb2 {[%emt 0:06:45]} e5 {[%emt 0:05:25]} 28. fxe5 {[%emt 0:03:35]} Qe6 {[%emt 0:00:36]} 29. Rd6 {[%emt 0:02:19]} Qf5 {[%emt 0:00:54]} 30. Qd3 {[%emt 0:02:26]} Rf8 {[%emt 0:00:59]} 31. Rd8 {[%emt 0:00:51]} Qe6 {[%emt 0:01:30]} 32. Rxf8+ {[%emt 0:04:26]} Kxf8 {[%emt 0:00:03]} 33. Qd8+ {[%emt 0:00:12]} Qe8 {[%emt 0:00:11]} 34. Qd6+ {[%emt 0:00:05]} Kg8 {[%emt 0:00:02]} 35. e6 {[%emt 0:00:19]} Nc6 {[%emt 0:02:05]} 36. e7 {[%emt 0:00:03]} Qxe7 {[%emt 0:01:05]} 37. Qxc6 {[%emt 0:00:03]} Qd8 {[%emt 0:00:47]} 38. Nf6+ {[%emt 0:00:26]} Kf8 {[%emt 0:00:23]} 39. Nxh7+ {[%emt 0:00:12]} Kg8 {[%emt 0:00:04]} 40. Nf6+ {[%emt 0:00:05]} Kf8 {[%emt 0:00:12]} 41. Be5 {[%emt 0:30:22]} Nxf6 {[%emt 0:31:23]} 42. gxf6 {[%emt 0:00:56]} Kg8 {[%emt 0:00:00]} 43. Qd6 {[%emt 0:00:00]} Qe8 {[%emt 0:00:00]} 44. Qb8 {[%emt 0:00:00]} 1-0

[Event "Tirnavia Reti Memorial-GM 2022"]
[Site "Trnava"]
[Date "2022.08.17"]
[Round "8.1"]
[White "Malinovsky, Karel"]
[Black "Finek, Vaclav"]
[Result "1/2-1/2"]
[ECO "C43"]
[WhiteElo "2463"]
[BlackElo "2393"]
[Annotator "RC"]
[PlyCount "121"]
[EventDate "2022.08.10"]
[EventType "tourn"]
[EventCountry "SVK"]
[SourceTitle "playchess.com"]
[Source "ChessBase"]
[SourceQuality "1"]
[TimeControl "40/5400+30:1800+30"]

1. e4 {[%emt 0:00:05]} e5 {[%emt 0:00:05]} 2. Nf3 {[%emt 0:00:07]} Nf6 {[%emt 0:00:04]} 3. d4 {[%emt 0:00:28]} Nxe4 {[%emt 0:00:06]} 4. Bd3 {[%emt 0:00:06]} d5 {[%emt 0:00:05]} 5. Nxe5 {[%emt 0:00:09]} Nd7 {[%emt 0:00:07]} 6. Nxd7 {[%emt 0:00:13]} Bxd7 {[%emt 0:00:05]} 7. O-O {[%emt 0:00:30]} Bd6 {[%emt 0:00:23]} 8. Nc3 {[%emt 0:00:54]} Nxc3 {[%emt 0:00:07]} 9. bxc3 {[%emt 0:00:06]} O-O {[%emt 0:00:55]} 10. Qh5 {[%emt 0:01:01]} f5 {[%emt 0:00:04]} 11. Re1 {[%emt 0:01:05]} c6 {[%emt 0:01:59]} 12. Bg5 {[%emt 0:00:58]} Qc7 {[%emt 0:00:04]} 13. c4 {[%emt 0:00:47]} Be8 {[%emt 0:01:53]} 14. Qh3 {[%emt 0:01:07]} dxc4 {[%emt 0:02:17]} 15. Bxc4+ {[%emt 0:00:22]} Bf7 {[%emt 0:00:13]} 16. Be6 {[%emt 0:01:24]} Bxe6 {[%emt 0:09:18]} 17. Rxe6 {[%emt 0:00:07]} Rae8 {[%emt 0:00:05]} 18. Rxe8 {[%emt 0:05:14]} Rxe8 {[%emt 0:00:04]} 19. Qxf5 {[%emt 0:00:19]} Bxh2+ {[%emt 0:00:23]} 20. Kf1 {[%emt 0:03:28]} Bd6 {[%emt 0:03:23]} 21. c4 {[%emt 0:03:30]} c5 {[%emt 0:24:57]} 22. d5 {[%emt 0:25:25]} b5 {[%emt 0:02:31]} 23. cxb5 {[%emt 0:09:10]} Re5 {[%emt 0:02:14]} 24. Qg4 {[%emt 0:00:47]} Qb7 {[%emt 0:01:27]} 25. a4 {[%emt 0:05:49]} Bf8 {[%emt 0:18:19]} 26. Rd1 {[%emt 0:11:23]} Qf7 {[%emt 0:03:48]} 27. d6 {[%emt 0:12:09]} h5 {[%emt 0:03:17]} 28. Qf4 {[%emt 0:07:42]} Qb3 {[%emt 0:02:39]} 29. Qd2 {[%emt 0:01:14]} Rxg5 {[%emt 0:03:44]} 30. d7 {[%emt 0:00:07]} Be7 {[%emt 0:00:02]} 31. d8=Q+ {[%emt 0:00:10]} Bxd8 {[%emt 0:00:12]} 32. Qxd8+ {[%emt 0:00:06]} Kh7 {[%emt 0:01:02]} 33. Qd3+ {[%emt 0:00:56]} Qxd3+ {[%emt 0:00:32]} 34. Rxd3 {[%emt 0:00:03]} Rg4 {[%emt 0:02:30]} 35. Rd5 {[%emt 0:00:19]} Rxa4 {[%emt 0:03:35]} 36. Rxh5+ {[%emt 0:00:07]} Kg6 {[%emt 0:01:18]} 37. Rxc5 {[%emt 0:00:08]} Ra5 {[%emt 0:03:42]} 38. Ke2 {[%emt 0:01:18]} Kh7 {[%emt 0:02:54]} 39. Rh5+ {[%emt 0:02:10]} Kg6 {[%emt 0:02:27]} 40. Re5 {[%emt 0:01:21]} a6 {[%emt 0:03:59]} 41. Re6+ {[%emt 0:30:57]} Kf5 {[%emt 0:32:59]} 42. Rxa6 {[%emt 0:01:03]} Rxb5 {[%emt 0:01:02]} 43. f3 {[%emt 0:00:22]} g5 {[%emt 0:00:00]} 44. g4+ {[%emt 0:00:00]} Kf4 {[%emt 0:00:00]} 45. Rf6+ {[%emt 0:00:00]} Kg3 {[%emt 0:00:00]} 46. Ke3 {[%emt 0:00:00]} Rb4 {[%emt 0:00:00]} 47. Rf5 {[%emt 0:00:00]} Kh4 {[%emt 0:00:00]} 48. Rd5 {[%emt 0:00:00]} Ra4 {[%emt 0:00:00]} 49. Rd4 {[%emt 0:00:00]} Ra3+ {[%emt 0:00:00]} 50. Ke4 {[%emt 0:00:00]} Kg3 {[%emt 0:00:00]} 51. Rd1 {[%emt 0:00:00]} Ra4+ {[%emt 0:00:00]} 52. Kf5 {[%emt 0:00:00]} Ra5+ {[%emt 0:00:00]} 53. Kg6 {[%emt 0:00:00]} Kxf3 {[%emt 0:00:00]} 54. Rg1 {[%emt 0:00:00]} Kf4 {[%emt 0:00:00]} 55. Kh5 {[%emt 0:00:00]} Ra8 {[%emt 0:00:00]} 56. Rf1+ {[%emt 0:00:51]} Kg3 {[%emt 0:00:00]} 57. Kxg5 {[%emt 0:00:22]} Ra5+ {[%emt 0:00:00]} 58. Rf5 {[%emt 0:00:08]} Ra4 {[%emt 0:00:00]} 59. Kh5 {[%emt 0:00:28]} Rxg4 {[%emt 0:00:00]} 60. Rg5 {[%emt 0:00:05]} Rxg5+ {[%emt 0:00:00]} 61. Kxg5 {[%emt 0:00:02]} 1/2-1/2